bitfinex-derivatives/quotes_BNBF0:USTF0_20251002
["timestamp","ask_amount","ask_price","bid_price","bid_amount"]
[1759373119313,0.86481367,1035.7,1034.0,0.64898057]
[1759373119809,1.0328878,1035.8,1034.0,0.64898057]
[1759373120013,0.16807413,1035.8,1034.0,0.64898057]
[1759373121813,0.16807413,1035.8,1034.1,0.64898057]
[1759373122509,0.16807413,1035.8,1034.3,0.64898057]
[1759373124910,0.16807413,1035.8,1034.4,0.64898057]
[1759373127920,0.16807413,1035.8,1034.5,0.64898057]
[1759373129416,0.86481367,1036.5,1034.5,0.64898057]
[1759373129717,0.16802868,1036.0,1034.5,0.64898057]
[1759373132118,0.16802868,1036.0,1034.4,0.64898057]
[1759373134431,0.16802868,1036.0,1034.5,0.64898057]
[1759373137631,0.16802868,1036.0,1034.4,0.64898057]
[1759373144337,0.16802868,1036.0,1034.3,0.64898057]
[1759373144538,0.16802868,1036.0,1034.4,0.64898057]
[1759373146739,0.16802868,1036.0,1034.5,0.64898057]
[1759373147335,0.16802868,1036.0,1034.4,0.64898057]
[1759373147535,0.16802868,1036.0,1034.5,0.64898057]
[1759373148638,0.16802868,1036.0,1034.4,0.64898057]
[1759373152346,0.16802868,1036.0,1034.5,0.64898057]
[1759373153048,0.16802868,1036.0,1034.4,0.64898057]
[1759373154949,0.16802868,1036.0,1034.3,0.64898057]
[1759373156246,0.16802868,1036.0,1034.2,0.64898057]
[1759373163257,0.16802868,1036.0,1034.3,0.64898057]
[1759373164357,0.16802868,1036.0,1034.4,0.64898057]
[1759373168064,0.16802868,1036.0,1034.3,0.64898057]
[1759373170365,0.16802868,1036.0,1034.4,0.64898057]
[1759373172466,0.16802868,1036.0,1034.5,0.64898057]
[1759373173866,0.16802868,1036.0,1034.6,0.64898057]
[1759373175069,0.16802868,1036.0,1034.8,0.64898057]
[1759373177565,0.16802868,1036.0,1034.9,0.64898057]
[1759373181573,0.16802868,1036.0,1035.0,0.64898057]
[1759373198091,0.86481367,1036.3,1035.1,0.64898057]
[1759373198293,0.16799826,1036.3,1035.2,0.64898057]
[1759373198692,1.03281193,1036.3,1035.2,0.64898057]
[1759373200996,0.16799826,1036.3,1035.2,0.64898057]
[1759373215507,0.86481367,1036.6,1035.2,0.64898057]
[1759373215710,0.86481367,1037.2,1035.2,0.64898057]
[1759373215910,0.16795732,1036.5,1035.2,0.64898057]
[1759373216107,0.86481367,1037.2,1035.2,0.64898057]
[1759373216411,0.16792166,1036.6,1035.2,0.64898057]
[1759373216711,0.86481367,1037.3,1035.3,0.64898057]
[1759373216911,0.16791193,1036.8,1035.3,0.64898057]
[1759373217108,0.16791193,1036.8,1035.6,0.64898057]
[1759373217412,0.86481367,1037.2,1035.6,0.64898057]
[1759373217608,0.1678852,1037.0,1035.6,0.64898057]
[1759373220113,0.1678852,1037.0,1035.5,0.64898057]
[1759373221510,0.1678852,1037.0,1035.7,0.64898057]
[1759373221813,0.1678852,1037.0,1035.6,0.64898057]
[1759373222209,0.1678852,1037.0,1035.7,0.64898057]
[1759373222510,0.1678852,1037.0,1035.6,0.64898057]
[1759373223410,0.16782124,1037.5,1036.1,0.64898057]
[1759373224309,0.16782124,1037.5,1036.0,0.64898057]
[1759373225013,0.86481367,1038.0,1036.0,0.64898057]
[1759373225309,0.16778685,1037.5,1036.0,0.64898057]
[1759373225514,0.16778685,1037.5,1035.9,0.64898057]
[1759373227315,0.16778685,1037.5,1035.8,0.64898057]
[1759373228814,0.86481367,1038.4,1035.8,0.64898057]
[1759373229018,0.16776946,1037.6,1035.8,0.64898057]
[1759373229222,0.86481367,1038.4,1035.8,0.64898057]
[1759373229615,0.16776946,1037.6,1035.8,0.64898057]
[1759373229915,0.86481367,1038.4,1035.8,0.64898057]
[1759373230115,0.16776946,1037.8,1035.8,0.64898057]
[1759373233621,0.16776946,1037.8,1035.9,0.64898057]
[1759373239821,0.16776946,1037.8,1035.8,0.64898057]
[1759373240026,0.16776946,1037.8,1035.9,0.64898057]
[1759373240222,0.16776946,1037.8,1035.8,0.64898057]
[1759373243227,0.16776946,1037.8,1035.7,0.64898057]
[1759373243832,0.16776946,1037.8,1035.8,0.64898057]
[1759373244031,0.16776946,1037.8,1035.7,0.64898057]
[1759373248842,0.16776946,1037.8,1035.5,0.64898057]
[1759373249541,0.16776946,1037.8,1035.6,0.64898057]
[1759373249739,0.16776946,1037.8,1035.5,0.64898057]
[1759373250641,0.16776946,1037.8,1035.6,0.64898057]
[1759373253347,0.16776946,1037.8,1035.4,0.64898057]
[1759373253944,0.16776946,1037.8,1035.5,0.64898057]
[1759373254149,0.16776946,1037.8,1035.4,0.64898057]
[1759373255846,0.16776946,1037.8,1035.6,0.64898057]
[1759373257851,0.16776946,1037.8,1035.7,0.64898057]
[1759373260347,0.16776946,1037.8,1035.6,0.64898057]
[1759373261451,0.16776946,1037.8,1035.7,0.64898057]
[1759373264850,0.16776946,1037.8,1035.8,0.64898057]
[1759373266051,0.16776946,1037.8,1035.9,0.64898057]
[1759373267250,0.16776946,1037.8,1036.0,0.64898057]
[1759373271263,0.16776946,1037.8,1036.1,0.64898057]
[1759373273161,0.16776946,1037.8,1036.2,0.64898057]
[1759373273463,0.16776946,1037.8,1036.2,7.90380547]
[1759373275166,1.03258313,1037.8,1036.2,7.90380547]
[1759373275966,0.16776946,1037.8,1036.2,7.90380547]
[1759373276166,1.03258313,1037.8,1036.3,0.64898057]
[1759373276667,0.16776946,1037.8,1036.3,0.64898057]
[1759373278169,1.03258313,1037.8,1036.4,0.64898057]
[1759373280070,0.16776946,1037.8,1036.5,0.64898057]
[1759373280671,0.16776946,1037.8,1036.6,0.64898057]
[1759373286273,0.86481367,1037.9,1036.6,0.64898057]
[1759373288376,1.03254351,1038.0,1036.6,0.64898057]
[1759373291174,1.03254351,1038.0,1036.4,0.85450316]
[1759373291474,0.16772984,1038.0,1035.5,39.34482178]
[1759373292280,0.86446224,1037.9,1036.6,0.64235086]
[1759373292678,0.16772984,1038.0,1036.5,0.64235086]
[1759373292975,0.86446224,1037.7,1036.5,0.64235086]
[1759373293679,0.86446224,1037.8,1036.5,0.64235086]
[1759373294779,0.86446224,1037.9,1036.5,0.64235086]
[1759373295281,0.86446224,1037.9,1036.6,0.64235086]
[1759373297780,0.16772984,1038.0,1036.6,0.64235086]
[1759373300285,1.03219208,1038.0,1036.7,0.64235086]
[1759373301884,0.16772984,1038.0,1036.6,0.64235086]
[1759373302082,0.16772984,1038.0,1036.9,0.64235086]
[1759373302586,0.16772984,1038.0,1036.8,0.64235086]
[1759373303682,0.86446224,1038.5,1036.8,0.64235086]
[1759373303984,0.16768054,1038.2,1036.8,0.64235086]
[1759373306189,0.16768054,1038.2,1036.7,0.64235086]
[1759373309591,0.16768054,1038.2,1036.9,0.64235086]
[1759373313089,0.16768054,1038.2,1036.8,0.64235086]
[1759373314588,0.16768054,1038.2,1036.9,0.64235086]
[1759373314894,0.86446224,1038.6,1037.0,0.64235086]
[1759373315096,0.16764904,1038.4,1037.0,0.64235086]
[1759373315390,0.16764904,1038.4,1037.1,0.64235086]
[1759373316796,0.16764904,1038.4,1037.0,0.64235086]
[1759373318995,0.16764904,1038.4,1036.9,0.64235086]
[1759373319500,0.16764904,1038.4,1037.0,0.64235086]
[1759373320298,0.16764904,1038.4,1036.9,0.64235086]
[1759373321199,0.16764904,1038.4,1036.7,0.85646781]
[1759373321200,0.16764904,1038.4,1037.0,0.64235086]
[1759373321497,0.16764904,1038.4,1036.9,0.64235086]
[1759373322300,0.16764904,1038.4,1037.0,0.64235086]
[1759373322498,0.16764904,1038.4,1036.9,0.64235086]
[1759373323602,0.16764904,1038.4,1036.7,0.64034292]
[1759373325201,0.16764904,1038.4,1036.8,0.64034292]
[1759373325401,0.16764904,1038.4,1036.7,0.64034292]
[1759373325802,0.16764904,1038.4,1036.8,0.64034292]
[1759373326608,0.16764904,1038.4,1036.7,0.64034292]
[1759373327001,0.16764904,1038.4,1036.5,7.12856795]
[1759373327699,0.16764904,1038.4,1036.5,6.48822503]
[1759373327899,1.03211128,1038.4,1036.5,6.48822503]
[1759373328402,1.03211128,1038.4,1036.5,7.12856795]
[1759373329798,0.86446224,1038.3,1036.5,7.12856795]
[1759373330998,0.86446224,1038.3,1036.5,7.12826531]
[1759373331303,0.86446224,1038.1,1036.5,6.48822503]
[1759373332705,0.86446224,1038.0,1036.5,6.48822503]
[1759373334207,0.86446224,1038.1,1036.5,6.48822503]
[1759373335910,0.86446224,1038.2,1036.5,7.12826531]
[1759373340710,0.86446224,1038.1,1036.5,7.12826531]
[1759373341005,0.86446224,1038.2,1036.5,7.12826531]
[1759373344414,0.86446224,1038.3,1036.5,7.12826531]
[1759373348011,0.86446224,1038.3,1036.6,0.64004028]
[1759373350008,0.86446224,1038.3,1036.7,0.64004028]
[1759373353918,0.86446224,1038.2,1036.7,0.64004028]
[1759373354117,0.86446224,1038.3,1036.8,0.64004028]
[1759373355418,0.16764904,1038.4,1036.7,0.64004028]
[1759373357319,0.16764904,1038.4,1036.8,0.64004028]
[1759373357718,1.03211128,1038.4,1036.9,0.64004028]
[1759373358118,0.86446224,1038.3,1037.0,0.64004028]
[1759373358619,1.03211128,1038.4,1036.9,0.64004028]
[1759373359421,0.86446224,1038.3,1036.9,0.64004028]
[1759373360017,0.86446224,1038.3,1036.9,7.18198027]
[1759373360921,1.03211128,1038.4,1036.9,7.18198027]
[1759373361620,0.16764904,1038.4,1036.9,7.18198027]
[1759373361818,1.03211128,1038.4,1036.9,6.54193999]
[1759373363219,1.03211128,1038.4,1036.8,0.64004028]
[1759373365626,0.86446224,1038.2,1036.8,0.64004028]
[1759373365923,0.86446224,1038.3,1036.8,0.64004028]
[1759373366324,0.86446224,1038.3,1036.7,0.64004028]
[1759373366624,0.16764904,1038.4,1036.8,6.59826247]
[1759373374834,0.86446224,1038.3,1036.8,7.23830275]
[1759373375131,0.86446224,1038.2,1036.8,7.23830275]
[1759373375532,0.86446224,1038.3,1036.8,7.23830275]
[1759373375735,0.86446224,1038.2,1036.8,7.23830275]
[1759373378743,0.86446224,1038.1,1036.8,6.59826247]
[1759373379844,0.86446224,1038.2,1036.8,6.59826247]
[1759373380342,0.86446224,1038.3,1036.8,6.59826247]
[1759373384948,0.86446224,1038.2,1036.8,6.59826247]
[1759373385246,0.86446224,1038.2,1036.8,7.23830275]
[1759373385651,0.86446224,1038.1,1036.8,7.23830275]
[1759373386251,0.86446224,1038.2,1036.8,7.23830275]
[1759373386750,0.86446224,1038.1,1036.8,7.23830275]
[1759373392053,0.86446224,1038.1,1036.8,0.64004028]
[1759373395456,0.86446224,1038.1,1036.9,0.64004028]
[1759373399057,0.86446224,1038.0,1036.9,0.64004028]
[1759373400060,0.86446224,1038.1,1037.0,0.64004028]
[1759373402663,0.86446224,1038.2,1037.1,0.64004028]
[1759373404169,0.86446224,1038.3,1037.1,0.64330458]
[1759373404468,0.16764904,1038.4,1037.3,0.64330458]
[1759373405370,0.16764904,1038.4,1037.2,0.64330458]
[1759373409874,0.16764904,1038.4,1037.1,0.64330458]
[1759373410778,0.16764904,1038.4,1037.0,0.64330458]
[1759373411581,0.16764904,1038.4,1037.1,0.64330458]
[1759373412177,0.16764904,1038.4,1037.0,0.64330458]
[1759373415184,1.03211128,1038.4,1037.0,0.64330458]
[1759373416284,0.86446224,1038.3,1037.0,0.64330458]
[1759373416784,1.03211128,1038.4,1037.0,0.64330458]
[1759373418580,0.86446224,1038.3,1036.9,0.64330458]
[1759373421085,1.03211128,1038.4,1036.9,0.64330458]
[1759373421786,0.16764904,1038.4,1036.8,0.64330458]
[1759373421981,0.16764904,1038.4,1036.9,0.64330458]
[1759373424486,0.16764904,1038.4,1036.7,6.70238547]
[1759373424487,0.16764904,1038.4,1037.0,0.64330458]
[1759373425582,0.16764904,1038.4,1036.9,0.64330458]
[1759373426185,1.03211128,1038.4,1036.9,0.64330458]
[1759373427787,0.86446224,1038.3,1036.9,0.64330458]
[1759373428287,0.16764904,1038.4,1036.8,0.64330458]
[1759373429791,1.03211128,1038.4,1036.7,7.34569005]
[1759373430388,0.16764904,1038.4,1036.7,6.70238547]
[1759373430588,1.03211128,1038.4,1036.7,6.70238547]
[1759373430786,0.86446224,1038.3,1036.7,6.70238547]
[1759373432589,0.86446224,1038.0,1036.7,6.70238547]
[1759373433690,0.86446224,1037.9,1036.7,6.70238547]
[1759373437196,0.86446224,1038.0,1036.7,6.70238547]
[1759373439096,0.86446224,1038.1,1036.7,6.70238547]
[1759373439298,0.16764904,1038.4,1036.1,0.64330458]
[1759373439697,0.16764904,1038.4,1036.2,0.64330458]
[1759373439897,0.86446224,1038.3,1036.1,7.36467396]
[1759373440097,0.86446224,1038.2,1036.2,0.64330458]
[1759373440397,0.86446224,1038.1,1036.1,7.36467396]
[1759373440692,0.86446224,1037.9,1036.2,0.64330458]
[1759373441092,0.86446224,1037.8,1036.2,0.64330458]
[1759373441292,0.86446224,1037.9,1036.2,0.64330458]
[1759373446396,0.86446224,1038.0,1036.2,0.64330458]
[1759373447201,0.86446224,1038.1,1036.3,0.64330458]
[1759373448401,0.86446224,1038.0,1036.3,0.64330458]
[1759373449299,0.86446224,1038.0,1036.4,0.64330458]
[1759373449496,0.86446224,1038.0,1036.3,0.64330458]
[1759373450198,1.03211128,1038.4,1036.3,0.64330458]
[1759373450398,0.16764904,1038.4,1036.3,0.64330458]
[1759373451903,0.16764904,1038.4,1036.4,0.64330458]
[1759373454505,1.03211128,1038.4,1036.4,0.64330458]
[1759373454800,0.86446224,1038.3,1036.4,0.64330458]
[1759373455100,0.16764904,1038.4,1036.4,0.64330458]
[1759373460704,0.16764904,1038.4,1036.5,0.64330458]
[1759373460705,1.03211128,1038.4,1036.5,0.64330458]
[1759373460903,0.86446224,1038.3,1036.6,0.64330458]
[1759373461502,0.86446224,1038.3,1036.7,0.64330458]
[1759373461805,1.03211128,1038.4,1036.7,0.64330458]
[1759373462505,0.16764904,1038.4,1036.7,0.64330458]
[1759373465809,0.16764904,1038.4,1036.5,7.53716853]
[1759373465810,0.16764904,1038.4,1036.8,0.64330458]
[1759373469710,0.16764904,1038.4,1036.9,0.64330458]
[1759373470205,0.16764904,1038.4,1036.8,0.64330458]
[1759373470406,0.16764904,1038.4,1036.9,0.64330458]
[1759373470610,0.16764904,1038.4,1036.8,0.64330458]
[1759373471211,0.16764904,1038.4,1036.9,0.64330458]
[1759373477121,0.16764904,1038.4,1037.0,0.64330458]
[1759373481921,0.16764904,1038.4,1036.9,0.64330458]
[1759373486224,0.16764904,1038.4,1036.8,0.64330458]
[1759373486828,0.16764904,1038.4,1036.9,0.64330458]
[1759373488126,0.16764904,1038.4,1036.8,0.64330458]
[1759373490731,0.16764904,1038.4,1036.5,7.53716853]
[1759373490732,0.16764904,1038.4,1036.9,0.64330458]
[1759373491028,0.16764904,1038.4,1036.8,0.64330458]
[1759373492228,0.16764904,1038.4,1036.9,0.64330458]
[1759373492633,0.16764904,1038.4,1036.8,0.64330458]
[1759373493230,0.16764904,1038.4,1036.9,0.64330458]
[1759373497237,0.16764904,1038.4,1036.8,0.64330458]
[1759373497834,0.16764904,1038.4,1036.9,0.64330458]
[1759373502640,0.16764904,1038.4,1036.8,0.64330458]
[1759373502938,0.16764904,1038.4,1036.9,0.64330458]
[1759373503138,0.16764904,1038.4,1036.8,0.64330458]
[1759373504336,1.03211128,1038.4,1036.8,0.64330458]
[1759373504539,1.03211128,1038.4,1036.7,0.64330458]
[1759373505739,1.03211128,1038.4,1036.8,0.64330458]
[1759373505939,1.03211128,1038.4,1036.9,0.64330458]
[1759373507438,0.16764904,1038.4,1036.8,0.64330458]
[1759373508640,0.16764904,1038.4,1036.7,0.64330458]
[1759373508837,0.16764904,1038.4,1036.6,0.64330458]
[1759373509539,0.16764904,1038.4,1036.5,6.68070072]
[1759373509540,0.16764904,1038.4,1036.7,0.64330458]
[1759373511245,0.86446224,1038.2,1036.8,0.64330458]
[1759373514540,1.03211128,1038.4,1036.9,0.64330458]
[1759373515146,0.86446224,1038.4,1036.9,0.64330458]
[1759373515346,0.16769508,1038.1,1036.9,0.64330458]
[1759373516944,0.16769508,1038.1,1036.5,6.68070072]
[1759373517346,1.03215732,1038.1,1036.5,6.68070072]
[1759373517542,0.86446224,1037.8,1036.5,6.68070072]
[1759373518542,0.86446224,1037.7,1036.5,6.68070072]
[1759373520343,0.86446224,1037.8,1036.5,6.68070072]
[1759373522046,0.86446224,1037.7,1036.5,6.68070072]
[1759373522246,0.86446224,1037.5,1036.0,0.64330458]
[1759373522648,0.86446224,1037.5,1035.9,0.64330458]
[1759373522944,0.86446224,1037.5,1035.8,0.64330458]
[1759373523444,0.86446224,1037.7,1035.7,40.73326664]
[1759373524348,0.86446224,1037.8,1035.7,40.73326664]
[1759373524944,0.86446224,1037.9,1035.7,40.73326664]
[1759373527253,0.86446224,1038.0,1035.7,40.73326664]
[1759373527450,0.86446224,1037.9,1035.7,40.08996206]
[1759373527754,0.86446224,1037.8,1035.7,40.73326664]
[1759373527954,0.86446224,1037.8,1035.7,47.26436599]
[1759373528453,0.86446224,1037.9,1035.7,47.26436599]
[1759373529154,0.16769508,1038.1,1035.7,46.62106141]
[1759373530756,0.86446224,1038.0,1035.7,46.62106141]
[1759373531562,1.03215732,1038.1,1035.7,6.53109935]
[1759373531856,0.86446224,1037.9,1035.7,6.53109935]
[1759373532360,0.86446224,1038.0,1035.7,6.53109935]
[1759373532762,1.03215732,1038.1,1035.7,6.53109935]
[1759373533057,0.86446224,1038.0,1035.7,6.53109935]
[1759373534460,0.86446224,1037.9,1035.7,6.53109935]
[1759373534661,0.86446224,1037.5,1035.7,6.53109935]
[1759373534861,0.86446224,1037.6,1035.7,6.53109935]
[1759373536462,0.86446224,1037.7,1035.7,6.53109935]
[1759373536860,0.86446224,1037.7,1035.0,0.16769751]
[1759373537063,0.86446224,1037.6,1035.0,0.16769751]
[1759373537560,0.86446224,1037.7,1035.0,0.16769751]
[1759373539864,0.86446224,1037.6,1035.0,0.16769751]
[1759373541161,0.86446224,1037.7,1035.0,0.16769751]
[1759373541761,0.86446224,1037.8,1035.0,0.16769751]
[1759373542366,0.86446224,1037.9,1035.0,0.16769751]
[1759373543066,0.86446224,1037.8,1035.0,0.16769751]
[1759373543465,0.86446224,1037.7,1035.0,0.16769751]
[1759373543766,0.86446224,1037.6,1035.0,0.16769751]
[1759373543966,0.86446224,1037.7,1035.0,0.16769751]
[1759373544667,0.86446224,1037.9,1035.0,0.16769751]
[1759373545069,0.86446224,1037.8,1035.0,0.16769751]
[1759373547676,0.86446224,1037.9,1035.0,0.16769751]
[1759373547874,0.86446224,1037.8,1035.0,0.16769751]
[1759373548381,0.86446224,1037.9,1035.0,0.16769751]
[1759373549082,0.86446224,1037.8,1035.0,0.16769751]
[1759373549378,0.86446224,1037.9,1035.0,0.16769751]
[1759373549778,0.86446224,1037.8,1035.0,0.16769751]
[1759373549982,0.16769508,1038.1,1035.0,0.16769751]
[1759373550783,0.16769508,1038.1,1035.0,0.81100209]
[1759373551786,0.16769508,1038.1,1035.1,0.64330458]
[1759373555586,0.16769508,1038.1,1035.3,0.16784552]
[1759373560290,1.03215732,1038.1,1035.3,0.8111501]
[1759373560489,0.16769508,1038.1,1035.3,0.8111501]
[1759373560688,1.03215732,1038.1,1035.3,0.8111501]
[1759373561190,0.86446224,1038.0,1035.3,0.8111501]
[1759373562685,0.86446224,1038.0,1035.4,0.64330458]
[1759373562889,0.86446224,1038.0,1035.3,0.8111501]
[1759373563287,0.86446224,1037.9,1035.4,0.64330458]
[1759373565991,0.86446224,1038.0,1035.4,0.64330458]
[1759373566488,0.86446224,1037.9,1035.4,0.64330458]
[1759373569295,0.86446224,1037.8,1035.5,0.64330458]
[1759373572397,0.86446224,1037.7,1035.5,0.64330458]
[1759373572694,0.86446224,1037.8,1035.5,0.64330458]
[1759373573198,0.86446224,1037.7,1035.5,0.64330458]
[1759373573397,0.86446224,1037.6,1035.5,0.64330458]
[1759373574199,0.86446224,1037.6,1035.6,0.64330458]
[1759373575396,0.86446224,1037.5,1035.6,0.64330458]
[1759373576400,0.86446224,1037.5,1035.7,0.64330458]
[1759373576700,0.86446224,1037.5,1035.6,0.64330458]
[1759373576902,0.86446224,1037.5,1035.7,0.64330458]
[1759373577301,0.86446224,1037.6,1035.7,0.64330458]
[1759373577797,0.86446224,1037.6,1035.6,0.64330458]
[1759373578099,0.86446224,1037.7,1035.7,0.64330458]
[1759373578301,0.86446224,1037.9,1036.0,0.64330458]
[1759373579897,0.86446224,1037.6,1035.8,0.64330458]
[1759373580202,0.86446224,1037.7,1035.8,0.64330458]
[1759373580598,0.86446224,1037.6,1035.8,0.64330458]
[1759373586106,0.86446224,1037.5,1035.8,0.64330458]
[1759373588405,0.86446224,1037.6,1035.8,0.64330458]
[1759373591006,0.86446224,1037.7,1035.8,0.64330458]
[1759373594212,0.86446224,1037.8,1035.7,0.64330458]
[1759373594913,0.86446224,1037.7,1035.7,0.64330458]
[1759373596219,0.86446224,1037.8,1035.7,0.64330458]
[1759373597315,0.86446224,1037.7,1035.7,0.64330458]
[1759373597915,0.86446224,1037.8,1035.8,0.64330458]
[1759373598318,0.86446224,1037.7,1035.8,0.64330458]
[1759373600322,0.86446224,1037.7,1035.5,0.85646781]
[1759373600522,1.46438844,1038.1,1035.3,0.16784552]
[1759373601224,0.16769508,1038.1,1035.3,0.16784552]
[1759373601620,0.86356085,1037.7,1035.8,0.64186342]
[1759373601824,0.86356085,1037.7,1035.8,6.2675943]
[1759373602024,1.29534128,1038.0,1035.8,6.2675943]
[1759373602321,0.16769508,1038.1,1035.8,6.2675943]
[1759373602626,0.86377906,1037.7,1035.9,0.64212217]
[1759373603022,0.86377906,1037.6,1035.9,0.64212217]
[1759373606328,0.86377906,1037.6,1036.0,0.64212217]
[1759373606826,0.86377906,1037.5,1036.0,0.64212217]
[1759373607525,0.86377906,1037.5,1035.9,0.64212217]
[1759373608630,0.86377906,1037.5,1036.0,0.64212217]
[1759373609127,0.86377906,1037.5,1035.9,0.64212217]
[1759373609328,0.86377906,1037.5,1036.0,0.64212217]
[1759373610331,0.86377906,1037.3,1036.2,0.64212217]
[1759373610533,0.86377906,1037.4,1036.3,0.64212217]
[1759373610828,0.86377906,1037.3,1036.2,0.64212217]
[1759373615428,0.86377906,1037.3,1036.1,0.64212217]
[1759373620036,0.86377906,1037.4,1036.1,0.64212217]
[1759373621338,0.86377906,1037.3,1036.1,0.64212217]
[1759373635746,0.86377906,1037.2,1036.1,0.64212217]
[1759373636145,0.86377906,1037.4,1036.1,0.64212217]
[1759373636446,0.86377906,1037.3,1035.9,0.64212217]
[1759373637044,0.86377906,1037.0,1035.8,6.90971647]
[1759373637545,0.86377906,1036.9,1035.8,6.90971647]
[1759373638147,0.86377906,1037.0,1035.8,6.2675943]
[1759373638345,0.86377906,1036.9,1035.8,6.2675943]
[1759373639148,0.86377906,1037.0,1035.8,6.2675943]
[1759373640645,0.86377906,1036.9,1035.8,6.2675943]
[1759373640844,0.86377906,1037.0,1035.8,6.2675943]
[1759373644454,0.86377906,1037.1,1035.8,6.2675943]
[1759373645049,0.86377906,1037.0,1035.8,6.2675943]
[1759373647353,0.86377906,1037.1,1035.8,6.2675943]
[1759373650959,0.86377906,1037.1,1035.8,6.2675943]
[1759373653262,0.86377906,1037.0,1035.8,6.2675943]
[1759373654565,0.86377906,1037.1,1035.8,6.2675943]
[1759373655569,0.86377906,1037.0,1035.8,6.2675943]
[1759373655870,0.86377906,1036.9,1035.8,6.2675943]
[1759373656069,0.86377906,1037.0,1035.8,6.2675943]
[1759373658971,0.86377906,1037.1,1035.8,6.2675943]
[1759373659372,0.86377906,1037.1,1035.3,0.80996769]
[1759373659667,0.86377906,1037.1,1035.3,0.16784552]
[1759373660269,0.86377906,1036.7,1035.1,7.02417537]
[1759373660568,0.86377906,1036.7,1035.1,7.19214728]
[1759373662169,0.86377906,1036.7,1035.0,0.64212217]
[1759373662375,0.86377906,1036.3,1034.3,0.64212217]
[1759373662574,0.86377906,1036.3,1034.7,0.16802584]
[1759373662972,0.86377906,1036.5,1034.7,0.16802584]
[1759373665378,1.29566859,1036.8,1034.7,0.16802584]
[1759373665379,0.86377906,1036.6,1034.7,0.16802584]
[1759373666781,0.86377906,1036.5,1034.7,0.16802584]
[1759373667076,0.86377906,1036.4,1034.7,0.16802584]
[1759373667379,0.86377906,1036.5,1034.7,0.16802584]
[1759373670177,0.86377906,1036.6,1034.7,0.16802584]
[1759373673176,0.86377906,1036.7,1034.7,0.16802584]
[1759373673378,0.86377906,1036.8,1034.7,0.16802584]
[1759373674880,0.86377906,1037.0,1034.7,0.16802584]
[1759373675078,0.86377906,1037.1,1034.7,0.16802584]
[1759373675279,0.86377906,1036.9,1034.7,0.16802584]
[1759373675584,0.86377906,1037.1,1034.7,0.16802584]
[1759373675980,0.86377906,1037.0,1034.7,0.16802584]
[1759373676179,0.86377906,1037.1,1034.7,0.16802584]
[1759373677582,0.86377906,1036.9,1034.7,0.16802584]
[1759373678382,0.86377906,1037.1,1034.7,0.16802584]
[1759373686386,0.86377906,1037.0,1034.7,0.16802584]
[1759373687988,0.86377906,1036.8,1034.7,0.16802584]
[1759373690388,0.86377906,1036.7,1034.7,0.16802584]
[1759373690992,0.86377906,1036.8,1034.7,0.16802584]
[1759373691288,0.86377906,1036.7,1034.7,0.16802584]
[1759373694593,0.86377906,1036.5,1034.7,0.16802584]
[1759373696094,0.86377906,1036.4,1034.7,0.16802584]
[1759373696796,0.86377906,1036.5,1034.3,6.39938891]
[1759373697202,0.86377906,1036.4,1034.5,0.16807575]
[1759373697899,0.86377906,1036.3,1034.5,0.16807575]
[1759373701098,0.86377906,1036.1,1034.5,0.16807575]
[1759373704200,0.86377906,1036.1,1034.3,6.39938891]
[1759373704500,0.86377906,1036.1,1034.3,6.56749673]
[1759373706098,0.86377906,1036.0,1034.3,6.56749673]
[1759373706404,0.86377906,1035.9,1034.3,6.56749673]
[1759373707406,0.86377906,1036.0,1034.3,6.56749673]
[1759373711602,0.86377906,1035.9,1034.3,6.56749673]
[1759373712007,0.86377906,1035.9,1034.3,6.39938891]
[1759373713706,0.86377906,1035.8,1034.3,6.39938891]
[1759373713903,0.86377906,1035.7,1034.3,6.39938891]
[1759373714810,0.86377906,1035.8,1034.3,6.39938891]
[1759373715007,0.86377906,1035.7,1034.3,6.39938891]
[1759373715311,0.86377906,1035.8,1034.3,6.39938891]
[1759373715709,0.16814722,1035.4,1034.3,6.39938891]
[1759373744630,0.16814722,1035.4,1034.1,0.16813097]
[1759373744830,0.16814722,1035.4,1033.5,0.85616289]
[1759373744831,0.16814722,1035.4,1033.5,0.6426001]
[1759373745028,0.16814722,1035.4,1033.9,0.16816022]
[1759373746427,0.16814722,1035.4,1033.8,5.82290501]
[1759373749628,1.03192628,1035.4,1033.8,5.82290501]
[1759373750230,0.16814722,1035.4,1033.8,6.46550511]
[1759373750432,1.03192628,1035.4,1033.8,6.46550511]
[1759373750632,0.16814722,1035.4,1033.8,6.46550511]
[1759373752835,0.16814722,1035.4,1033.9,0.6426001]
[1759373753235,0.16814722,1035.4,1033.9,0.64418213]
[1759373757344,0.16814722,1035.4,1034.0,0.64418213]
[1759373758545,0.16814722,1035.4,1033.9,0.64418213]
[1759373759241,0.16814722,1035.4,1034.0,0.64418213]
[1759373765350,1.03192628,1035.4,1034.1,0.64418213]
[1759373765950,0.86377906,1035.3,1034.1,0.64418213]
[1759373768345,0.86377906,1035.3,1034.2,0.64418213]
[1759373768651,0.86377906,1035.3,1034.1,0.64418213]
[1759373771250,0.86377906,1035.3,1034.2,0.64418213]
[1759373772149,1.03192628,1035.4,1034.2,0.64418213]
[1759373773855,0.86377906,1035.3,1034.3,0.64418213]
[1759373774855,0.86377906,1035.4,1034.4,0.64418213]
[1759373775256,0.86377906,1035.5,1034.5,0.64418213]
[1759373775551,1.03190597,1035.6,1034.6,0.64418213]
[1759373776355,0.16812691,1035.6,1034.6,0.64418213]
[1759373776856,1.03190597,1035.6,1034.6,0.64418213]
[1759373777051,0.86377906,1035.8,1034.7,0.64418213]
[1759373777253,1.03185481,1035.9,1034.6,0.64418213]
[1759373780255,0.16807575,1035.9,1034.5,0.64418213]
[1759373784758,0.16807575,1035.9,1034.4,0.64418213]
[1759373790272,0.16807575,1035.9,1034.3,0.64418213]
[1759373794468,0.16807575,1035.9,1034.4,0.64418213]
[1759373804079,0.16807575,1035.9,1034.3,0.64418213]
[1759373804279,0.16807575,1035.9,1034.4,0.64418213]
[1759373806578,0.16807575,1035.9,1034.2,0.85616289]
[1759373806579,0.16807575,1035.9,1034.5,0.64418213]
[1759373810578,0.16807575,1035.9,1034.6,0.64418213]
[1759373810880,0.86377906,1036.4,1034.7,0.64418213]
[1759373811081,0.168023,1036.2,1034.7,0.64418213]
[1759373813379,0.168023,1036.2,1034.8,0.64418213]
[1759373815280,0.86377906,1036.6,1034.8,0.64418213]
[1759373815484,0.86377906,1036.5,1034.8,0.64418213]
[1759373815885,0.86377906,1036.6,1034.8,0.64418213]
[1759373816181,0.86377906,1036.6,1034.9,0.64418213]
[1759373817281,0.86377906,1036.7,1034.9,0.64418213]
[1759373818586,0.86377906,1036.9,1034.9,0.64418213]
[1759373818786,0.16797515,1036.4,1034.9,0.64418213]
[1759373825188,0.86377906,1037.1,1035.0,0.64418213]
[1759373825588,0.86377906,1037.1,1035.1,0.64418213]
[1759373825786,0.16793543,1036.7,1035.1,0.64418213]
[1759373826285,0.16793543,1036.7,1035.2,0.64418213]
[1759373826485,0.16793543,1036.7,1035.1,0.64418213]
[1759373827088,0.16793543,1036.7,1035.2,0.64418213]
[1759373829188,0.16793543,1036.7,1035.3,0.64418213]
[1759373829391,0.16793543,1036.7,1035.3,5.85978203]
[1759373831791,0.16793543,1036.7,1035.3,5.2155999]